fUST/lending_fUST_20251031
["ID","MTS","AMOUNT","RATE_DAILY","PERIOD"]
[392759878,1761923432843,-2116.85672748,0.00028565,4]
[392759880,1761923432852,-500.0,0.00028565,4]
[392759882,1761923432861,-640.85,0.00028565,4]
[392759884,1761923432871,-500.0,0.00028566,4]
[392759886,1761923432881,-505.01,0.00028566,4]
[392759888,1761923432891,-500.0,0.00028566,4]
[392759890,1761923432900,-500.0,0.00028566,4]
[392759892,1761923432909,-500.0,0.00028566,4]
[392759894,1761923432918,-500.0,0.00028566,4]
[392759896,1761923432928,-500.0,0.00028566,4]
[392759898,1761923432937,-500.0,0.00028566,4]
[392759900,1761923432947,-500.0,0.00028566,4]
[392759902,1761923432956,-500.0,0.00028566,4]
[392759904,1761923432968,-500.0,0.00028566,4]
[392759906,1761923432979,-500.0,0.00028566,4]
[392759908,1761923432988,-517.98,0.00028566,4]
[392759910,1761923432997,-500.0,0.00028566,4]
[392759911,1761923433007,-500.0,0.00028566,4]
[392759913,1761923433016,-500.0,0.00028566,4]
[392759915,1761923433025,-500.0,0.00028566,4]
[392759917,1761923433035,-500.0,0.00028566,4]
[392759919,1761923433046,-500.0,0.00028566,4]
[392759921,1761923433055,-500.0,0.00028566,4]
[392759923,1761923433065,-500.0,0.00028566,4]
[392759925,1761923433074,-500.0,0.00028566,4]
[392759927,1761923433083,-166.881537,0.00028801,60]
[392759929,1761923433093,-179.18,0.00028829,2]
[392759931,1761923433102,-500.0,0.00028839,4]
[392759933,1761923433112,-158.3396506,0.00028839,2]
[392759935,1761923433122,-500.0,0.00028839,4]
[392759937,1761923433131,-6658.17,0.00028839,4]
[392759939,1761923433141,-500.0,0.00028839,4]
[392759941,1761923433150,-500.0,0.00028839,4]
[392759943,1761923433160,-500.0,0.00028839,4]
[392759945,1761923433169,-2886.12,0.00028839,4]
[392759947,1761923433179,-500.0,0.00028839,4]
[392759949,1761923433188,-382.49257932,0.00028839,4]
[392760103,1761923438544,-511.38359723,0.00028566,4]
[392760104,1761923438554,-500.0,0.00028838,2]
[392760105,1761923438564,-500.0,0.00028838,2]
[392760106,1761923438574,-208.06388852,0.00028838,2]
[392760107,1761923438584,-500.0,0.00028838,2]
[392760108,1761923438595,-500.0,0.00028838,2]
[392760109,1761923438605,-500.0,0.00028838,2]
[392760110,1761923438615,-500.0,0.00028838,2]
[392760111,1761923438625,-500.0,0.00028838,2]
[392760112,1761923438635,-500.0,0.00028838,2]
[392760113,1761923438644,-500.0,0.00028838,2]
[392760114,1761923438654,-418.52643128,0.00028838,2]
[392760115,1761923438664,-500.0,0.00028838,2]
[392760116,1761923438674,-325.20742732,0.00028838,2]
[392760117,1761923438684,-500.0,0.00028838,2]
[392760118,1761923438694,-500.0,0.00028838,2]
[392760119,1761923438704,-500.0,0.00028838,2]
[392760120,1761923438714,-500.0,0.00028838,2]
[392760121,1761923438725,-500.0,0.00028838,2]
[392760122,1761923438735,-500.0,0.00028838,2]
[392760123,1761923438745,-500.0,0.00028838,2]
[392760125,1761923438755,-500.0,0.00028838,2]
[392760127,1761923438764,-500.0,0.00028838,2]
[392760128,1761923438774,-500.0,0.00028838,2]
[392760129,1761923438785,-500.0,0.00028838,2]
[392760130,1761923438794,-500.0,0.00028838,2]
[392760131,1761923438803,-500.0,0.00028838,2]
[392760133,1761923438814,-500.0,0.00028838,2]
[392760134,1761923438824,-500.0,0.00028838,2]
[392760136,1761923438834,-500.0,0.00028838,2]
[392760138,1761923438844,-157.79772021,0.00028838,2]
[392760139,1761923438853,-500.0,0.00028838,2]
[392760140,1761923438863,-500.0,0.00028838,2]
[392760141,1761923438873,-371.76951719,0.00028838,2]
[392760142,1761923438883,-500.0,0.00028838,2]
[392760144,1761923438893,-500.0,0.00028838,2]
[392760145,1761923438904,-500.0,0.00028838,2]
[392760146,1761923438914,-258.35742068,0.00028839,4]
[392760147,1761923438924,-500.0,0.0002884,4]
[392760148,1761923438934,-505.01,0.0002884,4]
[392760149,1761923438944,-500.0,0.0002884,4]
[392760150,1761923438954,-500.0,0.0002884,4]
[392760151,1761923438964,-500.0,0.0002884,4]
[392760152,1761923438977,-500.0,0.0002884,4]
[392760153,1761923438987,-500.0,0.0002884,4]
[392760154,1761923438997,-500.0,0.0002884,4]
[392760155,1761923439007,-500.0,0.0002884,4]
[392760156,1761923439017,-500.0,0.0002884,4]
[392760157,1761923439027,-399.4030374,0.0002884,4]
[392760158,1761923439037,-500.0,0.0002884,4]
[392760159,1761923439050,-517.98,0.0002884,4]
[392760160,1761923439059,-500.0,0.0002884,4]
[392760161,1761923439069,-500.0,0.0002884,4]
[392760162,1761923439079,-500.0,0.0002884,4]
[392760163,1761923439089,-500.0,0.0002884,4]
[392760164,1761923439248,-500.0,0.0002884,4]
[392760165,1761923439260,-500.0,0.0002884,4]
[392760166,1761923439270,-500.0,0.0002884,4]
[392760167,1761923439280,-255.14553266,0.00029112,2]
[392760168,1761923439290,-500.0,0.00029113,4]
[392760169,1761923439300,-500.0,0.00029113,4]
[392760170,1761923439310,-6658.17,0.00029113,4]
[392760171,1761923439319,-500.0,0.00029113,4]
[392760172,1761923439330,-500.0,0.00029113,4]
[392760173,1761923439339,-500.0,0.00029113,4]
[392760174,1761923439349,-2886.12,0.00029113,4]
[392760175,1761923439358,-468.27034866,0.00029113,4]
[392760176,1761923439367,-640.85,0.00029113,4]
[392760177,1761923439377,-500.0,0.00029114,4]
[392760178,1761923439386,-505.01,0.00029114,4]
[392760179,1761923439395,-500.0,0.00029114,4]
[392760180,1761923439405,-500.0,0.00029114,4]
[392760181,1761923439414,-500.0,0.00029114,4]
[392760182,1761923439423,-500.0,0.00029114,4]
[392760183,1761923439432,-500.0,0.00029114,4]
[392760184,1761923439441,-500.0,0.00029114,4]
[392760185,1761923439450,-500.0,0.00029114,4]
[392760186,1761923439460,-500.0,0.00029114,4]
[392760187,1761923439468,-500.0,0.00029114,4]
[392760188,1761923439477,-517.98,0.00029114,4]
[392760189,1761923439487,-538.43280719,0.00029114,4]
[392760190,1761923439495,-500.0,0.00029114,4]
[392760191,1761923439506,-500.0,0.00029114,4]
[392760192,1761923439515,-500.0,0.00029114,4]
[392760193,1761923439525,-500.0,0.00029114,4]
[392760194,1761923439534,-192.52227166,0.00029114,4]
[392760195,1761923439547,-307.47772834,0.00029114,4]
[392760196,1761923439556,-500.0,0.00029114,4]
[392760197,1761923439566,-420.0,0.00029122,2]
[392760198,1761923439575,-500.0,0.0002928,5]
[392760199,1761923439585,-500.0,0.0002928,5]
[392760200,1761923439595,-501.41876397,0.0002928,3]
[392760201,1761923439606,-500.0,0.0002928,5]
[392760202,1761923439616,-296.43602792,0.00029333,2]
[392760203,1761923439627,-296.43602792,0.00029333,2]
[392760204,1761923439636,-500.0,0.00029387,4]
[392760205,1761923439646,-230.43548059,0.00029387,4]
[392760206,1761923439655,-6658.17,0.00029387,4]
[392760207,1761923439664,-500.0,0.00029387,4]
[392760208,1761923439674,-500.0,0.00029387,4]
[392760209,1761923439683,-500.0,0.00029387,4]
[392760210,1761923439697,-2886.12,0.00029387,4]
[392760211,1761923439710,-640.85,0.00029387,4]
[392760212,1761923439722,-500.0,0.00029388,4]
[392760213,1761923439731,-505.01,0.00029388,4]
[392760214,1761923439741,-245.57454915,0.00029388,4]
[392760215,1761923439755,-254.42545085,0.00029388,4]
[392760216,1761923439764,-500.0,0.00029388,4]
[392760217,1761923439773,-500.0,0.00029388,4]
[392760218,1761923439782,-500.0,0.00029388,4]
[392760219,1761923439792,-342.24256128,0.00029388,4]
[392760220,1761923439801,-270.84717086,0.00029388,4]
[392760221,1761923439811,-500.0,0.00029388,4]
[392760222,1761923439820,-500.0,0.00029388,4]
[392760223,1761923439830,-500.0,0.00029388,4]
[392760224,1761923439839,-517.98,0.00029388,4]
[392760225,1761923439849,-500.0,0.00029388,4]
[392760226,1761923439859,-500.0,0.00029388,4]
[392760227,1761923439868,-500.0,0.00029388,4]
[392760228,1761923439878,-500.0,0.00029388,4]
[392760229,1761923439887,-345.35695147,0.00029388,4]
[392760230,1761923439897,-500.0,0.00029388,4]
[392760231,1761923439906,-500.0,0.00029661,4]
[392760232,1761923439915,-5080.02686658,0.00029661,4]
[392760263,1761923440573,-1578.14313342,0.00029661,4]
[392760265,1761923440583,-500.0,0.00029661,4]
[392760268,1761923440593,-500.0,0.00029661,4]
[392760270,1761923440603,-500.0,0.00029661,4]
[392760272,1761923440612,-2886.12,0.00029661,4]
[392760274,1761923440621,-640.85,0.00029661,4]
[392760276,1761923440631,-500.0,0.00029662,4]
[392760278,1761923440641,-505.01,0.00029662,4]
[392760280,1761923440650,-500.0,0.00029662,4]
[392760282,1761923440660,-500.0,0.00029662,4]
[392760284,1761923440670,-500.0,0.00029662,4]
[392760286,1761923440679,-500.0,0.00029662,4]
[392760288,1761923440689,-500.0,0.00029662,4]
[392760290,1761923440699,-500.0,0.00029662,4]
[392760292,1761923440708,-500.0,0.00029662,4]
[392760294,1761923440717,-517.98,0.00029662,4]
[392760295,1761923440727,-500.0,0.00029662,4]
[392760296,1761923440737,-500.0,0.00029662,4]
[392760297,1761923440747,-500.0,0.00029662,4]
[392760298,1761923440758,-500.0,0.00029662,4]
[392760299,1761923440768,-500.0,0.00029662,4]
[392760300,1761923440777,-1000.0,0.00029828,5]
[392760301,1761923440788,-1000.0,0.00029828,5]
[392760302,1761923440798,-1000.0,0.00029828,5]
[392760303,1761923440807,-434.58106024,0.00029935,4]
[392760304,1761923440816,-6658.17,0.00029935,4]
[392760305,1761923440826,-500.0,0.00029935,4]
[392760306,1761923440836,-500.0,0.00029935,4]
[392760307,1761923440846,-500.0,0.00029935,4]
[392760308,1761923440856,-2886.12,0.00029935,4]
[392760309,1761923440866,-640.85,0.00029935,4]
[392760310,1761923440875,-500.0,0.00029936,4]
[392760311,1761923440885,-505.01,0.00029936,4]
[392760312,1761923440895,-500.0,0.00029936,4]
[392760313,1761923440904,-500.0,0.00029936,4]
[392760314,1761923440913,-500.0,0.00029936,4]
[392760315,1761923440923,-500.0,0.00029936,4]
[392760316,1761923440932,-500.0,0.00029936,4]
[392760317,1761923440941,-500.0,0.00029936,4]
[392760318,1761923440951,-500.0,0.00029936,4]
[392760319,1761923440960,-517.98,0.00029936,4]
[392760320,1761923440970,-500.0,0.00029936,4]
[392760321,1761923440982,-500.0,0.00029936,4]
[392760322,1761923440990,-500.0,0.00029936,4]
[392760323,1761923440999,-500.0,0.00029936,4]
[392760324,1761923441009,-500.0,0.00029936,4]
[392760325,1761923441020,-388.7,0.00029967,5]
[392760326,1761923441029,-6658.17,0.00030209,4]
[392760327,1761923441038,-500.0,0.00030209,4]
[392760328,1761923441049,-500.0,0.00030209,4]
[392760329,1761923441058,-500.0,0.00030209,4]
[392760330,1761923441068,-2886.12,0.00030209,4]
[392760331,1761923441077,-640.85,0.00030209,4]
[392760332,1761923441087,-500.0,0.0003021,4]
[392760333,1761923441096,-505.01,0.0003021,4]
[392760334,1761923441105,-500.0,0.0003021,4]
[392760335,1761923441114,-500.0,0.0003021,4]
[392760336,1761923441123,-265.61999734,0.0003021,4]
[392760337,1761923441133,-500.0,0.0003021,4]
[392760338,1761923441142,-500.0,0.0003021,4]
[392760339,1761923441152,-500.0,0.0003021,4]
[392760340,1761923441162,-500.0,0.0003021,4]
[392760341,1761923441172,-517.98,0.0003021,4]
[392760342,1761923441182,-500.0,0.0003021,4]
[392760343,1761923441192,-500.0,0.0003021,4]
[392760344,1761923441201,-500.0,0.0003021,4]
[392760345,1761923441210,-500.0,0.0003021,4]
[392760346,1761923441219,-500.0,0.0003021,4]
[392760347,1761923441229,-1500.0,0.00030376,5]
[392760348,1761923441238,-882.29887507,0.00030376,5]
[392760349,1761923441248,-1500.0,0.00030376,5]
[392760351,1761923441262,-6658.17,0.00030483,4]
[392760352,1761923441271,-360.21944814,0.00030483,4]
[392760354,1761923441280,-500.0,0.00030483,4]
[392760356,1761923441290,-500.0,0.00030483,4]
[392760358,1761923441299,-2886.12,0.00030483,4]
[392760360,1761923441309,-640.85,0.00030483,4]
[392760362,1761923441319,-500.0,0.00030484,4]
[392760364,1761923441328,-505.01,0.00030484,4]
[392760366,1761923441337,-580.08126492,0.00030484,4]
[392760368,1761923441346,-500.0,0.00030484,4]
[392760370,1761923441355,-331.48622085,0.00030484,4]
[392760391,1761923441546,-3e-08,0.00030484,4]
[392760815,1761923446623,-500.0,0.00028565,4]
[392760818,1761923446633,-500.0,0.00028566,4]
[392760820,1761923446642,-498.08840692,0.00028839,4]
[392760822,1761923446652,-500.0,0.0002884,4]
[392760824,1761923446661,-152.34105894,0.00030484,4]
[392760826,1761923446672,-16.17272018,0.00030484,4]
[392760828,1761923446681,-500.0,0.00030484,4]
[392760830,1761923446690,-274.73958642,0.00030484,4]
[392760832,1761923446701,-225.26041358,0.00030484,4]
[392760834,1761923446710,-500.0,0.00030484,4]
[392760836,1761923446719,-517.98,0.00030484,4]
[392760839,1761923446729,-500.0,0.00030484,4]
[392760842,1761923446739,-500.0,0.00030484,4]
[392760845,1761923446748,-500.0,0.00030484,4]
[392760848,1761923446758,-500.0,0.00030484,4]
[392760851,1761923446769,-500.0,0.00030484,4]
[392760853,1761923446778,-187.775,0.000306,26]
[392760857,1761923446787,-6658.17,0.00030757,4]
[392760860,1761923446796,-500.0,0.00030757,4]
[392760862,1761923446806,-500.0,0.00030757,4]
[392760865,1761923446815,-2886.12,0.00030757,4]
[392760867,1761923446825,-640.85,0.00030757,4]
[392760869,1761923446834,-505.01,0.00030758,4]
[392760871,1761923446845,-500.0,0.00030758,4]
[392760873,1761923446854,-500.0,0.00030758,4]
[392760875,1761923446863,-500.0,0.00030758,4]
[392760877,1761923446872,-478.48717222,0.00030758,4]
[392760879,1761923446881,-500.0,0.00030758,4]
[392760880,1761923446891,-517.98,0.00030758,4]
[392760883,1761923446900,-500.0,0.00030758,4]
[392760885,1761923446910,-500.0,0.00030758,4]
[392760887,1761923446919,-500.0,0.00030758,4]
[392760889,1761923446929,-500.0,0.00030758,4]
[392760890,1761923446938,-500.0,0.00030758,4]
[392760892,1761923446948,-2000.0,0.00030924,5]
[392760895,1761923446957,-6658.17,0.00031031,4]
[392760897,1761923446967,-500.0,0.00031031,4]
[392760899,1761923446981,-500.0,0.00031031,4]
[392760901,1761923446990,-2886.12,0.00031031,4]
[392760903,1761923446999,-640.85,0.00031031,4]
[392760905,1761923447011,-505.01,0.00031032,4]
[392760907,1761923447020,-268.32918854,0.00031032,4]
[392760909,1761923447029,-254.2476809,0.00031032,4]
[392760911,1761923447037,-500.0,0.00031032,4]
[392760913,1761923447049,-500.0,0.00031032,4]
[392760915,1761923447058,-517.98,0.00031032,4]
[392760916,1761923447067,-500.0,0.00031032,4]
[392760919,1761923447078,-258.18362847,0.00031032,4]
[392760920,1761923447087,-500.0,0.00031032,4]
[392760923,1761923447096,-500.0,0.00031032,4]
[392760925,1761923447105,-500.0,0.00031032,4]
[392760927,1761923447115,-6658.17,0.00031305,4]
[392760929,1761923447124,-500.0,0.00031305,4]
[392760931,1761923447133,-500.0,0.00031305,4]
[392760933,1761923447142,-2886.12,0.00031305,4]
[392760935,1761923447152,-640.85,0.00031305,4]
[392760937,1761923447162,-505.01,0.00031306,4]
[392760939,1761923447171,-500.0,0.00031306,4]
[392760940,1761923447180,-257.47102439,0.00031306,4]
[392762027,1761923709148,414.0,0.00037317,60]
[392762028,1761923709756,429.318,0.00037317,60]
[392762029,1761923710363,445.202766,0.00037317,60]
[392762030,1761923710990,445.202766,0.00037317,60]
[392762034,1761923940241,167.08730257,0.00025205,2]
[392762040,1761924013291,500.0,0.000253,2]
[392762043,1761924288592,150.0,0.00025376,2]
[392762050,1761924396342,500.0,0.000253,2]
[392762054,1761924500061,5000.0,0.0002551,2]
[392762058,1761924522424,4927.76794041,0.0002551,2]
[392762061,1761924537615,72.24205959,0.0002551,2]
[392762062,1761924537637,217.1955819,0.0002551,2]
[392762063,1761924545432,649.64333885,0.0002551,2]
[392762064,1761924612498,261.51697439,0.000253,2]
[392762142,1761924632912,-150.0,0.000258,2]
[392762143,1761924632922,-200.0,0.00026396,2]
[392762144,1761924632932,-285.2506302,0.00027276,5]
[392762145,1761924632941,-177.0,0.000278,2]
[392762146,1761924632951,-476.76434555,0.00028425,2]
[392762147,1761924632962,-847.80128261,0.00028425,2]
[392762148,1761924632972,-277.90685838,0.00028445,2]
[392762149,1761924632982,-164.21961969,0.00028446,2]
[392762150,1761924632991,-218.99699241,0.00028455,2]
[392762151,1761924633000,-300.0,0.00028534,2]
[392762152,1761924633010,-300.0,0.00028534,2]
[392762153,1761924633020,-300.0,0.00028535,2]
[392762154,1761924633029,-300.0,0.00028535,2]
[392762155,1761924633039,-1200.0,0.00028535,2]
[392762156,1761924633048,-300.0,0.00028535,2]
[392762157,1761924633058,-525.88,0.00028536,10]
[392762158,1761924633068,-438.23,0.00028536,10]
[392762159,1761924633078,-151.0,0.00028537,2]
[392762160,1761924633087,-151.0,0.00028537,2]
[392762161,1761924633097,-151.0,0.00028537,2]
[392762162,1761924633107,-131.05059053,0.00028537,2]
[392762163,1761924633118,-19.94940947,0.00028537,2]
[392762164,1761924633127,-151.0,0.00028537,2]
[392762165,1761924633137,-151.0,0.00028537,2]
[392762166,1761924633146,-151.0,0.00028537,2]
[392762167,1761924633155,-151.0,0.00028537,2]
[392762168,1761924633165,-151.0,0.00028537,2]
[392762169,1761924633174,-151.0,0.00028537,2]
[392762170,1761924633183,-151.0,0.00028537,2]
[392762171,1761924633193,-151.0,0.00028537,2]
[392762172,1761924633204,-151.0,0.00028537,2]
[392762173,1761924633213,-151.0,0.00028537,2]
[392762174,1761924633223,-151.0,0.00028537,2]
[392762175,1761924633233,-151.0,0.00028537,2]
[392762176,1761924633242,-151.0,0.00028537,2]
[392762177,1761924633251,-151.0,0.00028537,2]
[392762178,1761924633261,-151.0,0.00028537,2]
[392762179,1761924633270,-151.0,0.00028537,2]
[392762180,1761924633279,-833.07596949,0.00028542,2]
[392762181,1761924633289,-1200.0,0.00028543,2]
[392762182,1761924633299,-500.0,0.00028544,4]
[392762183,1761924633308,-500.0,0.00028544,4]
[392762184,1761924633318,-395.05341773,0.00028545,2]
[392762185,1761924633327,-50000.0,0.00028546,2]
[392762186,1761924633337,-3606.51,0.00028552,4]
[392762187,1761924633346,-500.0,0.00028552,4]
[392762188,1761924633356,-500.0,0.00028552,4]
[392762189,1761924633365,-1563.31,0.00028552,4]
[392762190,1761924633375,-833.07596949,0.00028554,2]
[392762191,1761924633384,-833.07596949,0.00028555,2]
[392762192,1761924633395,-200.0,0.0002856,14]
[392762193,1761924633405,-500.0,0.0002856,4]
[392762194,1761924633416,-500.0,0.0002856,4]
[392762195,1761924633426,-500.0,0.0002856,4]
[392762196,1761924633438,-500.0,0.0002856,4]
[392762197,1761924633449,-500.0,0.0002856,4]
[392762198,1761924633458,-500.0,0.0002856,4]
[392762199,1761924633468,-500.0,0.0002856,4]
[392762200,1761924633477,-500.0,0.0002856,4]
[392762201,1761924633486,-500.0,0.0002856,4]
[392762202,1761924633496,-500.0,0.0002856,4]
[392762203,1761924633505,-500.0,0.0002856,4]
[392762204,1761924633514,-500.0,0.0002856,2]
[392762205,1761924633523,-500.0,0.0002856,2]
[392762206,1761924633533,-1102.65,0.0002856,3]
[392762207,1761924633543,-500.0,0.0002856,4]
[392762208,1761924633552,-500.0,0.00028561,4]
[392762209,1761924633561,-500.0,0.00028561,4]
[392762210,1761924633571,-264.93039708,0.00028561,4]
[392762211,1761924633581,-500.0,0.00028561,2]
[392762212,1761924633590,-500.0,0.00028561,2]
[392762213,1761924633599,-941.22,0.00028562,4]
[392762214,1761924633608,-500.0,0.00028562,4]
[392762215,1761924633618,-500.0,0.00028562,4]
[392762216,1761924633627,-500.0,0.00028562,4]
[392762217,1761924633637,-500.0,0.00028562,4]
[392762218,1761924633647,-500.0,0.00028562,4]
[392762219,1761924633656,-371.58671549,0.00028562,4]
[392762220,1761924633665,-500.0,0.00028562,4]
[392762221,1761924633675,-500.0,0.00028562,4]
[392762222,1761924633684,-500.0,0.00028562,4]
[392762223,1761924633694,-500.0,0.00028562,4]
[392762224,1761924633703,-500.0,0.00028562,4]
[392762225,1761924633713,-500.0,0.00028562,4]
[392762226,1761924633722,-500.0,0.00028562,4]
[392762227,1761924633732,-500.0,0.00028562,4]
[392762228,1761924633741,-500.0,0.00028562,4]
[392762229,1761924633751,-500.0,0.00028562,4]
[392762230,1761924633760,-500.0,0.00028562,4]
[392762231,1761924633771,-500.0,0.00028562,4]
[392762232,1761924633780,-500.0,0.00028562,4]
[392762233,1761924633790,-150.4263636,0.00028562,4]
[392762234,1761924633800,-500.0,0.00028562,4]
[392762235,1761924633809,-500.0,0.00028562,4]
[392762236,1761924633819,-613.42,0.00028562,4]
[392762237,1761924633828,-500.0,0.00028562,4]
[392762238,1761924633838,-345.14819969,0.00028562,4]
[392762239,1761924633848,-500.0,0.00028562,4]
[392762240,1761924633863,-500.0,0.00028562,4]
[392762241,1761924633888,-180.62939776,0.00028562,4]
[392762242,1761924633904,-500.0,0.00028562,4]
[392762243,1761924633914,-500.0,0.00028562,4]
[392762244,1761924633923,-500.0,0.00028562,4]
[392762245,1761924633933,-500.0,0.00028562,4]
[392762246,1761924633943,-440.77444676,0.00028562,4]
[392762247,1761924633952,-500.0,0.00028562,4]
[392762248,1761924633962,-500.0,0.00028562,4]
[392762249,1761924633971,-1062.14,0.00028562,4]
[392762250,1761924633981,-500.0,0.00028562,4]
[392762251,1761924633990,-500.0,0.00028562,4]
[392762252,1761924634000,-500.0,0.00028562,4]
[392762253,1761924634010,-500.0,0.00028562,4]
[392762254,1761924634020,-548.22,0.00028562,4]
[392762255,1761924634030,-923.08,0.00028562,4]
[392762256,1761924634039,-500.0,0.00028562,4]
[392762257,1761924634049,-500.0,0.00028562,4]
[392762258,1761924634059,-500.0,0.00028562,4]
[392762259,1761924634069,-500.0,0.00028562,4]
[392762260,1761924634079,-3946.42,0.00028562,4]
[392762261,1761924634089,-1887.64,0.00028562,4]
[392762262,1761924634098,-500.0,0.00028562,4]
[392762263,1761924634107,-500.0,0.00028562,4]
[392762264,1761924634117,-500.0,0.00028562,4]
[392762265,1761924634126,-500.0,0.00028564,4]
[392762266,1761924634136,-500.0,0.00028564,4]
[392762267,1761924634146,-500.0,0.00028565,4]
[392762268,1761924634155,-500.0,0.00028565,4]
[392762269,1761924634164,-230.47806817,0.00028565,4]
[392762270,1761924634174,-500.0,0.00028565,4]
[392762271,1761924634183,-500.0,0.00028565,4]
[392762272,1761924634192,-500.0,0.00028565,4]
[392762273,1761924634202,-500.0,0.00028565,4]
[392762274,1761924634211,-507.26132329,0.00028565,4]
[392762275,1761924634221,-500.0,0.00028565,4]
[392762276,1761924634230,-500.0,0.00028565,4]
[392762277,1761924634240,-500.0,0.00028565,4]
[392762278,1761924634249,-500.0,0.00028565,4]
[392762279,1761924634259,-500.0,0.00028565,4]
[392762280,1761924634268,-500.0,0.00028565,4]
[392762281,1761924634278,-500.0,0.00028565,4]
[392762282,1761924634287,-500.0,0.00028565,4]
[392762283,1761924634298,-199.0,0.00028565,7]
[392762284,1761924634307,-500.0,0.00028565,4]
[392762285,1761924634317,-500.0,0.00028565,4]
[392762286,1761924634326,-500.0,0.00028565,4]
[392762287,1761924634335,-500.0,0.00028565,4]
[392762288,1761924634344,-500.0,0.00028565,4]
[392762289,1761924634354,-500.0,0.00028565,4]
[392762290,1761924634363,-500.0,0.00028565,4]
[392762291,1761924634373,-448.61571409,0.00028565,4]
[392762292,1761924634382,-500.0,0.00028565,4]
[392762293,1761924634392,-500.0,0.00028565,4]
[392762294,1761924634402,-500.0,0.00028565,4]
[392762295,1761924634412,-500.0,0.00028565,4]
[392762296,1761924634422,-500.0,0.00028565,4]
[392762297,1761924634431,-500.0,0.00028565,4]
[392762298,1761924634446,-500.0,0.00028565,4]
[392762299,1761924634455,-500.0,0.00028565,4]
[392762300,1761924634465,-500.0,0.00028565,4]
[392762301,1761924634474,-500.0,0.00028565,4]
[392762302,1761924634485,-500.0,0.00028565,4]
[392762303,1761924634495,-500.0,0.00028565,4]
[392762304,1761924634505,-500.0,0.00028565,4]
[392762305,1761924634516,-500.0,0.00028565,4]
[392762306,1761924634525,-262.92320896,0.00028565,4]
[392762307,1761924634534,-500.0,0.00028565,4]
[392762308,1761924634544,-500.0,0.00028565,4]
[392762309,1761924634554,-265.09040845,0.00028565,4]
[392762310,1761924634564,-500.0,0.00028565,4]
[392762311,1761924634573,-500.0,0.00028565,4]
[392762312,1761924634582,-500.0,0.00028565,4]
[392762313,1761924634591,-500.0,0.00028565,4]
[392762314,1761924634601,-500.0,0.00028565,4]
[392762315,1761924634611,-500.0,0.00028565,4]
[392762316,1761924634621,-500.0,0.00028565,4]
[392762317,1761924634630,-500.0,0.00028565,4]
[392762318,1761924634640,-500.0,0.00028565,4]
[392762319,1761924634650,-500.0,0.00028565,4]
[392762320,1761924634660,-500.0,0.00028565,4]
[392762321,1761924634670,-500.0,0.00028565,4]
[392762322,1761924634679,-500.0,0.00028565,4]
[392762323,1761924634688,-500.0,0.00028565,4]
[392762324,1761924634697,-500.0,0.00028565,4]